fUSD/lending_fUSD_20260126
["ID","MTS","AMOUNT","RATE_DAILY","PERIOD"]
[403642314,1769446240673,-500.0,0.00017179,2]
[403642316,1769446240684,-500.0,0.00017179,2]
[403642318,1769446240694,-500.0,0.00017179,2]
[403642320,1769446240703,-267.1991042,0.00017179,2]
[403642322,1769446240713,-200.0,0.00017179,2]
[403642324,1769446240723,-151.0,0.00017179,2]
[403642326,1769446240732,-2578.59988622,0.0001718,2]
[403642328,1769446240741,-899.5558688,0.00017188,2]
[403642330,1769446240750,-240.21,0.00017188,2]
[403642332,1769446240760,-500.0,0.00017188,2]
[403642334,1769446240769,-560.64958379,0.00017189,2]
[403642336,1769446240780,-560.64958379,0.00017189,2]
[403642338,1769446240789,-560.64958379,0.00017189,2]
[403642340,1769446240798,-560.64958379,0.00017189,2]
[403642342,1769446240808,-560.64958379,0.00017189,2]
[403642344,1769446240818,-560.64958379,0.00017189,2]
[403642346,1769446240828,-560.64958379,0.00017189,2]
[403642348,1769446240838,-560.64958379,0.00017189,2]
[403642350,1769446240847,-560.64958379,0.00017189,2]
[403642353,1769446240858,-560.64958379,0.00017189,2]
[403642354,1769446240868,-560.64958379,0.00017189,2]
[403642357,1769446240878,-560.64958379,0.00017189,2]
[403642359,1769446240887,-560.64958379,0.00017189,2]
[403642361,1769446240896,-560.64958379,0.00017189,2]
[403642363,1769446240906,-560.64958379,0.00017189,2]
[403642365,1769446240916,-560.64958379,0.00017189,2]
[403642367,1769446240926,-560.64958379,0.00017189,2]
[403642369,1769446240936,-560.64958379,0.00017189,2]
[403642370,1769446240944,-560.64958379,0.00017189,2]
[403642372,1769446240954,-560.64958379,0.00017189,2]
[403642375,1769446240964,-560.64958379,0.00017189,2]
[403642376,1769446240974,-560.64958379,0.00017189,2]
[403642378,1769446240984,-560.64958379,0.00017189,2]
[403642380,1769446240994,-560.64958379,0.00017189,2]
[403642383,1769446241004,-560.64958379,0.00017189,2]
[403642384,1769446241017,-560.64958379,0.00017189,2]
[403642386,1769446241026,-560.64958379,0.00017189,2]
[403642390,1769446241037,-560.64958379,0.00017189,2]
[403642392,1769446241046,-560.64958379,0.00017189,2]
[403642393,1769446241058,-560.64958379,0.00017189,2]
[403642396,1769446241068,-560.64958379,0.00017189,2]
[403642398,1769446241077,-560.64958379,0.00017189,2]
[403642400,1769446241088,-560.64958379,0.00017189,2]
[403642402,1769446241098,-560.64958379,0.00017189,2]
[403642404,1769446241107,-560.64958379,0.00017189,2]
[403642406,1769446241117,-560.64958379,0.00017189,2]
[403642408,1769446241127,-560.64958379,0.00017189,2]
[403642410,1769446241136,-560.64958379,0.00017189,2]
[403642412,1769446241145,-560.64958379,0.00017189,2]
[403642414,1769446241154,-560.64958379,0.00017189,2]
[403642416,1769446241163,-560.64958379,0.00017189,2]
[403642418,1769446241172,-560.64958379,0.00017189,2]
[403642420,1769446241183,-560.64958379,0.00017189,2]
[403642422,1769446241192,-560.64958379,0.00017189,2]
[403642424,1769446241201,-560.64958379,0.00017189,2]
[403642426,1769446241211,-560.64958379,0.00017189,2]
[403642428,1769446241219,-560.64958379,0.00017189,2]
[403642430,1769446241228,-560.64958379,0.00017189,2]
[403642432,1769446241238,-560.64958379,0.00017189,2]
[403642434,1769446241247,-560.64958379,0.00017189,2]
[403642436,1769446241256,-560.64958379,0.00017189,2]
[403642438,1769446241265,-560.64958379,0.00017189,2]
[403642440,1769446241274,-560.64958379,0.00017189,2]
[403642442,1769446241284,-560.64958379,0.00017189,2]
[403642444,1769446241293,-560.64958379,0.00017189,2]
[403642446,1769446241302,-560.64958379,0.00017189,2]
[403642448,1769446241311,-560.64958379,0.00017189,2]
[403642450,1769446241322,-560.64958379,0.00017189,2]
[403642452,1769446241332,-560.64958379,0.00017189,2]
[403642454,1769446241341,-553.41539562,0.00017189,2]
[403642456,1769446241351,-553.41539562,0.00017189,2]
[403642458,1769446241360,-553.41539562,0.00017189,2]
[403642460,1769446241370,-553.41539562,0.00017189,2]
[403642462,1769446241379,-553.41539562,0.00017189,2]
[403642464,1769446241389,-553.41539562,0.00017189,2]
[403642466,1769446241399,-553.41539562,0.00017189,2]
[403642468,1769446241408,-553.41539562,0.00017189,2]
[403642470,1769446241417,-553.41539562,0.00017189,2]
[403642472,1769446241428,-553.41539562,0.00017189,2]
[403642475,1769446241438,-553.41539562,0.00017189,2]
[403642477,1769446241447,-553.41539562,0.00017189,2]
[403642478,1769446241457,-553.41539562,0.00017189,2]
[403642481,1769446241466,-553.41539562,0.00017189,2]
[403642483,1769446241476,-553.41539562,0.00017189,2]
[403642484,1769446241485,-553.41539562,0.00017189,2]
[403642487,1769446241496,-553.41539562,0.00017189,2]
[403642489,1769446241505,-553.41539562,0.00017189,2]
[403642491,1769446241515,-553.41539562,0.00017189,2]
[403642493,1769446241523,-553.41539562,0.00017189,2]
[403642494,1769446241533,-553.41539562,0.00017189,2]
[403642496,1769446241542,-553.41539562,0.00017189,2]
[403642499,1769446241552,-553.41539562,0.00017189,2]
[403642500,1769446241562,-553.41539562,0.00017189,2]
[403642502,1769446241571,-553.41539562,0.00017189,2]
[403642505,1769446241580,-553.41539562,0.00017189,2]
[403642507,1769446241591,-553.41539562,0.00017189,2]
[403642509,1769446241600,-553.41539562,0.00017189,2]
[403642511,1769446241609,-553.41539562,0.00017189,2]
[403642513,1769446241618,-553.41539562,0.00017189,2]
[403642515,1769446241627,-553.41539555,0.00017189,2]
[403642517,1769446241636,-500.0,0.00017189,2]
[403642519,1769446241645,-554.41535433,0.00017189,2]
[403642521,1769446241655,-300.0,0.00017189,2]
[403642523,1769446241664,-300.0,0.00017189,2]
[403642525,1769446241673,-300.0,0.00017189,2]
[403642527,1769446241683,-300.0,0.00017189,2]
[403642529,1769446241693,-300.0,0.00017189,2]
[403642530,1769446241702,-300.0,0.00017189,2]
[403642531,1769446241711,-300.0,0.00017189,2]
[403642532,1769446241721,-152.52,0.00017189,2]
[403642533,1769446241730,-500.0,0.00017189,2]
[403642535,1769446241740,-506.33966749,0.00017189,2]
[403642536,1769446241750,-500.0,0.00017189,2]
[403642537,1769446241759,-537.9533771,0.00017189,2]
[403642538,1769446241768,-150.0,0.00017189,2]
[403642539,1769446241778,-500.0,0.00017189,2]
[403642540,1769446241788,-500.0,0.00017189,2]
[403642541,1769446241798,-200.0,0.0001719,2]
[403642542,1769446241808,-503.0,0.0001719,2]
[403642543,1769446241818,-200.0,0.0001719,2]
[403642544,1769446241828,-500.0,0.00017199,2]
[403642545,1769446241837,-500.0,0.00017199,2]
[403642546,1769446241846,-500.0,0.00017199,2]
[403642547,1769446241856,-500.0,0.00017199,2]
[403642548,1769446241866,-500.0,0.00017199,2]
[403642549,1769446241876,-500.0,0.00017199,2]
[403642550,1769446241886,-1000.0,0.000172,2]
[403642551,1769446241897,-270.0813666,0.00017206,2]
[403642552,1769446241907,-158.77791206,0.00017219,2]
[403642553,1769446241916,-2578.59988622,0.0001727,2]
[403642554,1769446241929,-166.66,0.00017277,2]
[403642555,1769446241939,-401.23235271,0.00017279,2]
[403642556,1769446241949,-331.41758085,0.00017293,2]
[403642557,1769446241959,-500.0,0.00017299,2]
[403642558,1769446241968,-531.00846507,0.00017299,2]
[403642559,1769446241978,-500.0,0.00017299,2]
[403642560,1769446241987,-500.0,0.00017299,2]
[403642561,1769446241998,-588.82402791,0.00017299,2]
[403642562,1769446242007,-500.0,0.00017299,2]
[403642563,1769446242018,-500.0,0.00017299,2]
[403642564,1769446242029,-500.0,0.00017299,2]
[403642565,1769446242038,-500.0,0.00017299,2]
[403642566,1769446242048,-551.95368049,0.00017299,2]
[403642567,1769446242058,-504.38275223,0.00017299,2]
[403642568,1769446242068,-500.0,0.00017299,2]
[403642569,1769446242078,-500.0,0.00017299,2]
[403642570,1769446242087,-500.0,0.00017299,2]
[403642571,1769446242098,-500.0,0.00017299,2]
[403642572,1769446242108,-270.0813666,0.00017321,2]
[403642573,1769446242118,-237.12196494,0.00017356,2]
[403642574,1769446242127,-200.0,0.0001736,2]
[403642575,1769446242137,-2578.59988622,0.0001736,2]
[403642576,1769446242147,-200.0,0.00017362,2]
[403642577,1769446242156,-200.0,0.00017362,2]
[403642578,1769446242166,-397.98928708,0.00017407,2]
[403642579,1769446242175,-702.10027759,0.00017407,2]
[403642580,1769446242185,-1050.30002542,0.00017407,2]
[403642581,1769446242195,-1421.0856,0.00017407,2]
[403642582,1769446242204,-150.0,0.00017425,2]
[403642583,1769446242213,-150.0,0.00017425,2]
[403642584,1769446242222,-500.0,0.00017425,2]
[403642585,1769446242231,-150.0,0.00017425,2]
[403642586,1769446242240,-150.0,0.00017425,2]
[403642587,1769446242251,-577.0,0.00017425,2]
[403642588,1769446242261,-150.0,0.00017425,2]
[403642589,1769446242270,-150.0,0.00017425,2]
[403642590,1769446242280,-150.0,0.00017425,2]
[403642591,1769446242290,-150.0,0.00017425,2]
[403642592,1769446242301,-150.0,0.00017425,2]
[403642593,1769446242310,-500.0,0.00017425,2]
[403642594,1769446242320,-500.0,0.00017425,2]
[403642595,1769446242329,-500.0,0.00017425,2]
[403642596,1769446242339,-150.0,0.00017425,2]
[403642597,1769446242348,-270.0813666,0.00017437,2]
[403642598,1769446242357,-2578.59988622,0.0001745,2]
[403642599,1769446242368,-240.21,0.00017462,2]
[403642600,1769446242378,-150.0,0.0001748,2]
[403642601,1769446242387,-150.0,0.0001748,2]
[403642602,1769446242397,-500.0,0.0001748,2]
[403642603,1769446242406,-150.0,0.0001748,2]
[403642604,1769446242416,-150.0,0.0001748,2]
[403642605,1769446242425,-577.0,0.0001748,2]
[403642606,1769446242436,-150.0,0.0001748,2]
[403642607,1769446242445,-150.0,0.0001748,2]
[403642608,1769446242455,-150.0,0.0001748,2]
[403642609,1769446242465,-150.0,0.0001748,2]
[403642610,1769446242475,-500.0,0.0001748,2]
[403642611,1769446242484,-500.0,0.0001748,2]
[403642612,1769446242493,-500.0,0.0001748,2]
[403642613,1769446242503,-331.41758085,0.00017495,2]
[403642614,1769446242513,-209.92047027,0.00017495,2]
[403642615,1769446242524,-200.0,0.00017533,2]
[403642616,1769446242535,-1000.0,0.00017534,2]
[403642617,1769446242545,-150.0,0.00017535,2]
[403642618,1769446242554,-150.0,0.00017535,2]
[403642619,1769446242563,-500.0,0.00017535,2]
[403642620,1769446242572,-154.14477787,0.00017535,2]
[403642621,1769446242582,-151.72557844,0.00017535,2]
[403642622,1769446242591,-577.0,0.00017535,2]
[403642623,1769446242600,-150.0,0.00017535,2]
[403642624,1769446242609,-200.0,0.00017535,2]
[403642625,1769446242619,-150.0,0.00017535,2]
[403642626,1769446242628,-150.0,0.00017535,2]
[403642627,1769446242637,-500.0,0.00017535,2]
[403642628,1769446242646,-500.0,0.00017535,2]
[403642629,1769446242655,-500.0,0.00017535,2]
[403642630,1769446242665,-200.0,0.00017536,2]
[403642631,1769446242675,-200.0,0.00017536,2]
[403642632,1769446242685,-2578.59988622,0.0001754,2]
[403642633,1769446242694,-270.0813666,0.00017553,2]
[403642634,1769446242703,-241.0,0.00017553,2]
[403642635,1769446242712,-447.3,0.00017553,2]
[403642636,1769446242721,-2016.26466095,0.00017577,2]
[403642637,1769446242730,-150.0,0.00017589,2]
[403642638,1769446242739,-500.0,0.00017589,2]
[403642639,1769446242748,-577.0,0.00017589,2]
[403642640,1769446242758,-150.0,0.00017589,2]
[403642641,1769446242767,-280.72866755,0.00017589,2]
[403642642,1769446242776,-500.0,0.00017589,2]
[403642643,1769446242786,-500.0,0.00017589,2]
[403642644,1769446242795,-447.3,0.00017597,2]
[403642645,1769446242804,-166.66,0.00017612,2]
[403642646,1769446242814,-2578.59988622,0.0001763,2]
[403642647,1769446242823,-152.72824357,0.0001764,2]
[403642648,1769446242833,-447.3,0.00017642,2]
[403642649,1769446242843,-223.95112934,0.00017644,2]
[403642650,1769446242853,-500.0,0.00017644,2]
[403642659,1769446243163,-577.0,0.00017644,2]
[403642660,1769446243173,-500.0,0.00017644,2]
[403642661,1769446243182,-375.04776947,0.00017644,2]
[403642662,1769446243191,-270.0813666,0.00017669,2]
[403642663,1769446243200,-447.3,0.00017687,2]
[403642664,1769446243210,-150.0,0.0001769,2]
[403642665,1769446243219,-150.0,0.0001769,2]
[403642667,1769446243230,-151.89329206,0.0001769,2]
[403642668,1769446243240,-331.41758085,0.00017698,2]
[403642669,1769446243249,-500.0,0.00017699,2]
[403642670,1769446243259,-500.0,0.00017699,2]
[403642671,1769446243269,-577.0,0.00017699,2]
[403642672,1769446243278,-500.0,0.00017699,2]
[403642673,1769446243288,-200.0,0.00017709,2]
[403642674,1769446243299,-200.0,0.00017711,2]
[403642675,1769446243309,-200.0,0.00017711,2]
[403642676,1769446243319,-282.28,0.00017719,2]
[403642677,1769446243328,-2578.59988622,0.0001772,2]
[403642679,1769446243337,-181.08010149,0.00017727,2]
[403642681,1769446243346,-885.86649465,0.00017727,2]
[403642683,1769446243355,-447.3,0.00017732,2]
[403642685,1769446243364,-240.21,0.00017736,2]
[403642686,1769446243374,-500.0,0.00017754,2]
[403642687,1769446243384,-577.0,0.00017754,2]
[403642688,1769446243393,-500.0,0.00017754,2]
[403642689,1769446243403,-447.3,0.00017776,2]
[403642690,1769446243412,-305.29758295,0.00017777,2]
[403642691,1769446243422,-270.0813666,0.00017784,2]
[403642692,1769446243431,-163.56,0.00017794,2]
[403642693,1769446243440,-1000.0,0.00017808,2]
[403642694,1769446243449,-500.0,0.00017809,2]
[403642695,1769446243458,-577.0,0.00017809,2]
[403642696,1769446243467,-500.0,0.00017809,2]
[403642697,1769446243476,-2578.59988622,0.0001781,2]
[403642698,1769446243485,-241.0,0.00017816,2]
[403642699,1769446243495,-8081.75591382,0.0001782,2]
[403642700,1769446243504,-598.5248,0.0001782,2]
[403642701,1769446243513,-2000.0,0.0001782,2]
[403642702,1769446243522,-598.5248,0.0001782,2]
[403642703,1769446243531,-447.3,0.00017821,2]
[403642704,1769446243541,-195.0,0.00017848,2]
[403642705,1769446243550,-200.0,0.00017856,2]
[403642706,1769446243559,-500.0,0.00017863,2]
[403642707,1769446243568,-577.0,0.00017863,2]
[403642708,1769446243578,-500.0,0.00017863,2]
[403642709,1769446243587,-447.3,0.00017866,2]
[403642710,1769446243597,-200.0,0.00017886,2]
[403642711,1769446243607,-200.0,0.00017888,2]
[403642712,1769446243617,-200.0,0.00017888,2]
[403642713,1769446243626,-331.41758085,0.000179,2]
[403642714,1769446243636,-2578.59988622,0.000179,2]
[403642715,1769446243646,-209.92047027,0.000179,2]
[403642716,1769446243657,-447.3,0.00017911,2]
[403642717,1769446243667,-500.0,0.00017918,2]
[403642718,1769446243676,-577.0,0.00017918,2]
[403642719,1769446243686,-500.0,0.00017918,2]
[403642720,1769446243695,-2000.0,0.0001792,2]
[403642721,1769446243704,-241.0,0.00017921,2]
[403642722,1769446243716,-447.3,0.00017955,2]
[403642723,1769446243726,-500.0,0.00017973,2]
[403642724,1769446243737,-500.0,0.00017973,2]
[403642725,1769446243747,-577.0,0.00017973,2]
[403642726,1769446243756,-500.0,0.00017973,2]
[403642727,1769446243767,-500.0,0.00017982,2]
[403642728,1769446243776,-241.0,0.00017983,2]
[403642729,1769446243786,-152.21,0.00017989,2]
[403642730,1769446243795,-152.21,0.0001799,2]
[403642731,1769446243804,-152.21,0.0001799,2]
[403642732,1769446243813,-152.21,0.0001799,2]
[403642733,1769446243823,-152.21,0.0001799,2]
[403642734,1769446243832,-152.21,0.0001799,2]
[403642735,1769446243842,-152.21,0.0001799,2]
[403642736,1769446243852,-152.21,0.0001799,2]
[403642737,1769446243861,-152.21,0.0001799,2]
[403642738,1769446243871,-152.21,0.0001799,2]
[403642739,1769446243880,-152.21,0.0001799,2]
[403642740,1769446243890,-152.21,0.0001799,2]
[403642741,1769446243899,-152.21,0.0001799,2]
[403642742,1769446243909,-152.21,0.0001799,2]
[403642743,1769446243919,-152.21,0.0001799,2]
[403642744,1769446243929,-152.21,0.0001799,2]
[403642745,1769446243942,-152.21,0.0001799,2]
[403642746,1769446243951,-4615.0,0.00017999,2]
[403642747,1769446243961,-500.0,0.00017999,2]
[403642748,1769446243971,-46827.2577613,0.00017999,2]
[403642749,1769446243981,-300.0,0.00017999,2]
[403642750,1769446243990,-150.0,0.00017999,2]
[403642751,1769446244000,-3764130.98342875,0.00018,2]
[403642752,1769446244015,-395.3448895,0.00018,2]
[403642753,1769446244561,-1.7e-07,0.00018,2]
[403642754,1769446244767,-21934.96429357,0.00018,2]
[403642755,1769446244796,-3748.86592578,0.00018,2]
[403642765,1769446246371,-365.49999999,0.00018,2]
[403642766,1769446246425,-23212.2891399,0.00018,2]
[403642767,1769446246480,-1036.0589152,0.00018,2]
[403642772,1769446254758,151.0,0.00016608,2]
[403642773,1769446255334,9849.01,0.000179,2]
[403642774,1769446255362,6968.8361562,0.000179,2]
[403642775,1769446258303,500.0,0.00017189,2]
[403642776,1769446260668,500.0,0.00017189,2]
[403642777,1769446260917,500.0,0.00017189,2]
[403642778,1769446261188,500.0,0.00017189,2]
[403642779,1769446261453,500.0,0.00017189,2]
[403642780,1769446271705,151.0,0.00016621,2]
[403642781,1769446282055,158.77791206,0.00017219,2]
[403642782,1769446287206,221.39593174,0.000179,2]
[403642783,1769446287232,3891.06587743,0.000179,2]
[403642784,1769446288056,151.0,0.00016627,2]
[403642785,1769446297947,2409.626,0.00017776,2]
[403642786,1769446297984,164.232,0.00017776,2]
[403642787,1769446304422,151.0,0.00016621,2]
[403642788,1769446310621,598.5248,0.0001782,2]
[403642789,1769446310679,598.52481,0.0001782,2]
[403642790,1769446310734,598.5248,0.0001782,2]
[403642791,1769446311632,1437.51171257,0.0001798,2]
[403642792,1769446311654,562.48828743,0.0001798,2]
[403642793,1769446311680,2000.0,0.0001783,2]
[403642794,1769446311705,2000.0,0.0001788,2]
[403642795,1769446311734,2000.0,0.0001793,2]
[403642796,1769446312109,598.5248,0.0001782,2]
[403642797,1769446320590,151.0,0.00016599,2]
[403642798,1769446325129,2687.99691257,0.00016988,2]
[403642799,1769446325160,10000.01,0.00016988,2]
[403642800,1769446325190,10000.01,0.00016988,2]
[403642801,1769446325220,10000.01,0.00016988,2]
[403642802,1769446325253,10000.01,0.00016988,2]
[403642803,1769446325283,10000.01,0.00016988,2]
[403642804,1769446325313,10000.01,0.00016988,2]
[403642805,1769446325343,10000.01,0.00016988,2]
[403642806,1769446325372,10000.01,0.00016988,2]
[403642807,1769446325400,10000.01,0.00016988,2]
[403642812,1769446365713,160.51,0.00016354,2]
[403642813,1769446442265,150.0,0.00016987,2]
[403642814,1769446467883,199.0,0.00014068,2]
[403642815,1769446468598,199.0,0.0001522,2]
[403642816,1769446469307,199.8599972,0.00015981,2]
[403642817,1769446482313,151.0,0.00016356,2]
[403642818,1769446499563,151.0,0.0001636,2]
[403642819,1769446516477,151.0,0.00016359,2]
[403642820,1769446533431,151.0,0.00016359,2]
[403642821,1769446549550,151.0,0.00016355,2]
[403642822,1769446565937,151.0,0.00016355,2]
[403642823,1769446583410,2320.73989767,0.00016888,2]
[403642824,1769446603738,600.0,0.00016218,2]
[403642825,1769446611611,177.76,0.00016764,2]
[403642826,1769446635288,209.92047028,0.00016888,2]
[403642828,1769446646845,151.0,0.00016353,2]
[403642833,1769446663234,151.0,0.0001635,2]
[403642837,1769446712471,151.0,0.00016298,2]
[403642838,1769446729317,151.0,0.00016298,2]
[403642839,1769446746001,151.0,0.00016298,2]
[403642840,1769446762352,151.0,0.00016299,2]
[403642841,1769446776172,209.92047027,0.00016888,2]
[403642842,1769446778480,151.0,0.00016299,2]
[403642843,1769446790695,1819.8555,0.00016888,2]
[403642844,1769446794906,204.8,0.00016299,2]
[403642853,1769446824087,1585.64366458,0.00016888,2]
[403642854,1769446824110,914.35633542,0.00016888,2]
[403642855,1769446832764,500.0,0.00016988,2]
[403642856,1769446833009,554.41535433,0.00016988,2]
[403642857,1769446835086,643.52515454,0.00016888,2]
[403642858,1769446855103,500.0,0.00016988,2]
[403642859,1769446855339,531.00846507,0.00016988,2]
[403642860,1769446858716,251.46627476,0.00016988,2]
[403642861,1769446858752,195.54321608,0.00016988,2]
[403642862,1769446869903,500.0,0.00016988,2]
[403642863,1769446870156,500.0,0.00016988,2]
[403642864,1769446870380,500.0,0.00016988,2]
[403642865,1769446872759,575.67,0.00016816,2]
[403642866,1769446872930,500.0,0.00016988,2]
[403642867,1769446873195,500.0,0.00016988,2]
[403642868,1769446873438,500.0,0.00016988,2]
[403642869,1769446876897,382.7940423,0.00016888,2]
[403642870,1769446882723,500.0,0.00016988,2]
[403642871,1769446883321,500.0,0.00016988,2]
[403642872,1769446883601,588.82402791,0.00016988,2]
[403642873,1769446897913,1276.76346501,0.00016649,2]
[403642874,1769446897935,650.93753499,0.00016649,2]
[403642875,1769446897990,164.232,0.00016649,2]
[403642876,1769446900009,300.0,0.00016988,2]
[403642877,1769446900239,300.0,0.00016988,2]
[403642878,1769446901036,300.0,0.00016988,2]
[403642879,1769446901482,300.0,0.00016988,2]
[403642880,1769446901519,300.0,0.00016988,2]
[403642881,1769446901560,300.0,0.00016988,2]
[403642882,1769446901622,300.0,0.00016988,2]
[403642883,1769446901842,152.52,0.00016988,2]
[403642884,1769446908826,209.92047027,0.00016888,2]
[403642885,1769446930776,6722.39999474,0.00016988,2]
[403642886,1769446930799,2829.76787073,0.00016988,2]
[403642887,1769446930898,266.71514727,0.00016988,2]
[403642888,1769446930929,500.0,0.00016988,2]
[403642889,1769446931521,500.0,0.00016988,2]
[403642890,1769446932127,500.0,0.00016988,2]
[403642891,1769446932719,500.0,0.00016988,2]
[403642892,1769446933901,500.0,0.00016988,2]
[403642893,1769446934185,500.0,0.00016988,2]
[403642894,1769446934805,500.0,0.00016988,2]
[403642895,1769446935133,322.6107,0.00016988,2]
[403642896,1769446935616,500.0,0.00016988,2]
[403642897,1769446936295,267.1991042,0.00016988,2]
[403642898,1769446936721,200.0,0.00016988,2]
[403642899,1769446942309,-8904.27084238,0.00016988,2]
[403642900,1769446943599,-10000.01,0.00016988,2]
[403642901,1769446943799,-10000.01,0.00016988,2]
[403642902,1769446945134,-289.9501,0.00016888,2]
[403642903,1769446945143,-9710.0599,0.00016988,2]
[403642904,1769446945779,-4829.2589827,0.00016987,2]
[403642905,1769446945818,-341.4920346,0.00016988,2]
[403642906,1769446947790,-10000.01,0.00016988,2]
[403642907,1769446947849,-10000.01,0.00016988,2]
[403642908,1769446947981,-10000.01,0.00016988,2]
[403642909,1769446948088,-10000.01,0.00016988,2]
[403642910,1769446955614,-227.3714,0.00016888,2]
[403642911,1769446955947,-854.2589148,0.00016988,2]
[403642912,1769446955976,-721.12765535,0.00016988,2]
[403642913,1769446956271,1257.41754705,0.00016987,5]
[403642914,1769446956452,174.61919141,0.00016988,2]
[403642916,1769446961567,3543.0,0.00016988,2]
[403642918,1769446964928,-5024.97326154,0.00016988,2]
[403642919,1769446965046,-10000.01,0.00016988,2]
[403642920,1769446965207,-10000.01,0.00016988,2]
[403642922,1769446968014,-10000.01,0.00016988,2]
[403642923,1769446968172,-10000.01,0.00016988,2]
[403642924,1769446971251,-2088.66590784,0.00016888,2]
[403642925,1769446972448,151.0,0.00016988,2]
[403642926,1769446974599,200.0,0.00016746,2]
[403642927,1769446975379,150.50962132,0.00016888,2]
[403642931,1769446994524,516.84475461,0.00016987,2]
[403642932,1769446994580,516.84475461,0.00016987,2]
[403642933,1769446994614,516.84475461,0.00016987,2]
[403642934,1769446994678,516.84475461,0.00016987,2]
[403642935,1769446994744,516.84475461,0.00016987,2]
[403642936,1769446994778,516.84475461,0.00016987,2]
[403642937,1769446994815,516.84475461,0.00016987,2]
[403642938,1769446994852,516.84475461,0.00016987,2]
[403642939,1769446994887,516.84475461,0.00016987,2]
[403642940,1769446994943,516.84475461,0.00016987,2]
[403642941,1769446994994,152.7210169,0.00016987,2]
[403642942,1769446995019,364.12373771,0.00016987,2]
[403642943,1769446995088,516.84475461,0.00016987,2]
[403642944,1769446995128,516.84475461,0.00016987,2]
[403642945,1769446995183,516.84475461,0.00016987,2]
[403642946,1769446995218,516.84475461,0.00016987,2]
[403642947,1769446995262,516.84475461,0.00016987,2]
[403642948,1769446995297,516.84475461,0.00016987,2]
[403642949,1769446995359,516.84475461,0.00016987,2]
[403642950,1769446995392,516.84475461,0.00016987,2]
[403642951,1769446995450,516.84475461,0.00016987,2]
[403642952,1769446995508,516.84475461,0.00016987,2]
[403642953,1769446995543,516.84475461,0.00016987,2]
[403642954,1769446995578,516.84475461,0.00016987,2]
[403642955,1769446995613,516.84475461,0.00016987,2]
[403642956,1769446995650,516.84475461,0.00016987,2]
[403642957,1769446995939,516.84475461,0.00016987,2]
[403642958,1769446996063,516.84475461,0.00016987,2]
[403642959,1769446996144,516.84475461,0.00016987,2]
[403642960,1769446996205,516.84475461,0.00016987,2]
[403642961,1769446996246,332.68067931,0.00016987,2]
[403642962,1769446996276,184.1640753,0.00016987,2]
[403642963,1769446996309,516.84475461,0.00016987,2]
[403642964,1769446996368,516.84475461,0.00016987,2]
[403642965,1769446996407,516.84475461,0.00016987,2]
[403642966,1769446996440,516.84475461,0.00016987,2]
[403642967,1769446996472,516.84475461,0.00016987,2]
[403642968,1769446996525,516.84475461,0.00016987,2]
[403642969,1769446996565,516.84475461,0.00016987,2]
[403642970,1769446996624,516.84475461,0.00016987,2]
[403642971,1769446996660,516.84475461,0.00016987,2]
[403642972,1769446996693,516.84475461,0.00016987,2]
[403642973,1769446996728,516.84475461,0.00016987,2]
[403642974,1769446996783,516.84475461,0.00016987,2]
[403642975,1769446996842,516.84475461,0.00016987,2]